[Event "44th Chess Olympiad Open 2022"]
[Site "Chennai"]
[Date "2022.07.30"]
[Round "2.24"]
[White "Paichadze, Luka"]
[Black "Zambrana, Osvaldo"]
[Result "1-0"]
[WhiteElo "2561"]
[BlackElo "2417"]
[Annotator "TA"]
[PlyCount "105"]
[EventDate "2022.??.??"]
[TimeControl "60"]

{[%evp 12,105,9,11,51,54,55,59,42,43,61,60,62,50,87,89,96,104,103,102,100,91,
81,84,83,76,77,80,86,81,88,84,81,93,88,64,66,71,72,65,68,62,74,61,68,72,68,74,
64,75,169,163,178,178,181,136,135,135,135,135,135,135,185,183,197,173,162,163,
250,176,179,197,218,192,275,201,308,308,308,307,299,192,190,186,306,266,317,
315,307,315,295,294,4137,4137,29972,3959]} 1. e4 {[%emt 0:00:05]} c5 {[%emt 0:
00:00]} 2. Nf3 {[%emt 0:00:08]} Nc6 {[%emt 0:00:12]} 3. Bb5 {[%emt 0:00:37]} g6
{[%emt 0:01:58]} 4. Bxc6 {[%emt 0:00:21]} dxc6 {[%emt 0:00:04]} 5. d3 {[%emt 0:
00:00]} Bg7 {[%emt 0:00:20]} 6. Nc3 {[%emt 0:00:07]} e5 {[%emt 0:03:33]} 7. h3
{[%emt 0:02:10]} Nf6 {[%emt 0:01:09] B31: Sicilian: 2...Nc6 3 Bb5 g6.} 8. Nxe5
{[%emt 0:13:14]} Nxe4 $1 {[%emt 0:00:53]} 9. Nxe4 {[%emt 0:00:05] Strongly
threatening Nc4.} Bxe5 {[%emt 0:00:16] White is slightly better.} 10. O-O {
[%emt 0:00:19]} O-O {[%emt 0:05:54]} 11. Nxc5 {[%emt 0:04:19]} b6 {[%emt 0:00:
00]} 12. Ne4 {[%emt 0:00:40]} c5 {[%emt 0:02:14]} 13. Re1 $1 {[%emt 0:08:13]}
Bg7 {[%emt 0:04:18]} 14. Bg5 {[%emt 0:06:46]} f6 {[%emt 0:02:19]} 15. Bf4 {
[%emt 0:21:02] [#] Nd6 is the strong threat.} Qd5 $146 {[%emt 0:04:09]} ({
Predecessor:} 15... g5 16. Bd6 Rf7 17. Bh2 Bf8 18. Qh5 Bb7 19. h4 Qd5 20. hxg5
fxg5 21. Qxg5+ Qxg5 22. Nxg5 {1-0 (56) Kabanov,N (2496)-Artamonov,V (2211)
Samara 2012}) 16. Nc3 {[%emt 0:09:21]} Qd7 {[%emt 0:03:02]} 17. Qd2 {[%emt 0:
00:00]} g5 {[%emt 0:03:09]} 18. Bg3 {[%emt 0:03:34]} Bb7 {[%emt 0:00:31]} 19.
Re2 {[%emt 0:00:00]} Rae8 {[%emt 0:34:37]} 20. Rae1 {[%emt 0:01:56]} h6 {
[%emt 0:11:36]} 21. Rxe8 {[%emt 0:00:06]} Rxe8 {[%emt 0:00:29]} 22. Rxe8+ {
[%emt 0:00:00]} Qxe8 {[%emt 0:03:54]} 23. Qe3 {[%emt 0:03:10]} Qc6 {[%emt 0:00:
00][%csl Gb7][%cal Rc6g2]} 24. f3 {[%emt 0:00:13] Active counter play!} f5 {
[%emt 0:00:00] And now ...Bd4 would win.} 25. Qe2 {[%emt 0:00:00]} Bd4+ {
[%emt 0:00:00]} 26. Kf1 {[%emt 0:04:55]} Kf7 {[%emt 0:04:25]} 27. Nd1 {[%emt 0:
00:00]} (27. Be5 {feels hotter.} h5 28. Nd1 g4 29. fxg4 hxg4 30. Bxd4 cxd4 31.
hxg4 fxg4 32. Qf2+) 27... Qe6 {[%emt 0:00:00]} 28. Qxe6+ {[%emt 0:00:00]} Kxe6
$14 {[%emt 0:00:00] Endgame KBB-KBN} 29. Bb8 {[%emt 0:00:00]} Kd7 {[%emt 0:00:
00]} 30. c3 {[%emt 0:00:00]} Bf6 {[%emt 0:02:38]} (30... Bg7 $16) 31. Bxa7 $18
{[%emt 0:04:52]} Kc7 {[%emt 0:00:00]} 32. Ne3 $1 {[%emt 0:01:22]} Be7 {[%emt 0:
00:00]} 33. Nc4 {[%emt 0:05:45]} b5 {[%emt 0:00:00] [#]} 34. Na5 {[%emt 0:04:
35]} Bd5 {[%emt 0:00:00]} 35. b3 {[%emt 0:03:06]} Be6 {[%emt 0:00:00]} 36. Ke2
{[%emt 0:00:23]} f4 {[%emt 0:00:00]} (36... g4 $16 {was called for.} 37. f4 Bf6
) 37. a3 {[%emt 0:01:40]} h5 {[%emt 0:00:00]} 38. b4 {[%emt 0:00:00]} cxb4 {
[%emt 0:01:37]} 39. axb4 {[%emt 0:00:00]} Bf6 {[%emt 0:00:09]} (39... Kd7 $142
40. Kd1 Bd5) 40. Kd2 {[%emt 0:00:10]} g4 {[%emt 0:04:00]} 41. hxg4 {[%emt 0:00:
14]} hxg4 {[%emt 0:30:04]} 42. c4 {[%emt 0:02:32]} Be7 {[%emt 0:00:00]} (42...
gxf3 $142 43. gxf3 Bd7) 43. Kc3 {[%emt 0:07:44]} bxc4 {[%emt 0:00:00]} (43...
Kc8 $142 44. Bd4 (44. cxb5 gxf3 45. gxf3 Bd5 $18) 44... Bh4) 44. dxc4 {[%emt 0:
00:23]} Bh4 {[%emt 0:00:00]} 45. Bc5 {[%emt 0:03:13]} Be1+ {[%emt 0:00:00]} 46.
Kd4 {[%emt 0:04:23]} gxf3 {[%emt 0:00:00]} 47. gxf3 {[%emt 0:00:08]} Bf7 {
[%emt 0:00:00]} (47... Bf5 {is a better defense.} 48. Ke5 Bd3 49. Kxf4 Kd7) 48.
Ke4 {[%emt 0:03:31]} Bd2 {[%emt 0:00:00]} 49. Kd3 {[%emt 0:00:08]} Be1 {
[%emt 0:00:00]} 50. Nb3 {[%emt 0:00:26]} Bg6+ {[%emt 0:00:00] [#]} 51. Ke2 $1 {
[%emt 0:00:39]} Bg3 {[%emt 0:00:00]} (51... Bc3 52. b5 Bc2) 52. b5 {[%emt 0:00:
35]} Bf7 {[%emt 0:00:00]} 53. Na5 {[%emt 0:00:24] Weighted Error Value:
White=0.09 (flawless) /Black=0.33} 1-0

[Event "44th Chess Olympiad Open 2022"]
[Site "Chennai"]
[Date "2022.07.30"]
[Round "2.24"]
[White "Gelashvili, Tamaz"]
[Black "Mendoza, Rodrigo"]
[Result "1-0"]
[WhiteElo "2549"]
[BlackElo "2215"]
[Annotator "TA"]
[PlyCount "107"]
[EventDate "2022.??.??"]
[TimeControl "60"]

{[%evp 9,107,-28,-14,-68,-69,-75,-1,-2,14,28,60,52,52,21,45,19,13,20,19,13,21,
25,33,15,6,0,6,-3,-8,0,0,-26,-12,-25,-28,-32,-32,-33,-37,-45,-42,-43,-31,-38,
-31,-34,-28,-58,-31,-38,-51,-60,-55,-64,-42,-268,-261,-318,-304,-375,-354,-391,
-389,-472,-472,-454,-331,-408,-398,-649,-624,-852,-783,-729,-689,-966,-952,
-1623,-1385,-5210,-1308,-29978,-29979,-29989,-29990,-29990,-72,-130,0,-843,0,0,
114,138,224,228,595,504,608,578]} 1. e4 {[%emt 0:00:03]} c6 {[%emt 0:00:08]} 2.
d4 {[%emt 0:00:05]} d5 {[%emt 0:00:05]} 3. e5 {[%emt 0:00:03]} Bf5 {[%emt 0:00:
00]} 4. h4 {[%emt 0:00:06]} h5 {[%emt 0:00:32]} 5. Bg5 {[%emt 0:00:06]} Qb6 {
[%emt 0:03:53]} 6. Bd3 {[%emt 0:00:08] B12: Caro-Kann: Advance Variation.} (6.
b3 $1 $11) 6... Bxd3 {[%emt 0:01:43]} 7. Qxd3 {[%emt 0:00:06][%cal Ye5e6]} e6 {
[%emt 0:00:08]} (7... Qxb2 $17 8. Qc3 Qxc3+ 9. Nxc3 e6) 8. Nd2 $11 {[%emt 0:00:
00] Active counter play! The position is equal.} Qa6 {[%emt 0:03:54]} 9. c4 {
[%emt 0:00:06]} Ne7 {[%emt 0:10:58]} 10. Ngf3 {[%emt 0:01:58]} Nf5 {[%emt 0:00:
00]} 11. O-O {[%emt 0:00:15]} Nd7 {[%emt 0:04:49]} 12. Qc2 {[%emt 0:02:47]} Bb4
{[%emt 0:23:21]} 13. cxd5 {[%emt 0:18:23]} cxd5 {[%emt 0:00:00]} 14. Rfc1 {
[%emt 0:00:07][%cal Yc2c8] Intending Qc8+! and mate.} O-O {[%emt 0:00:00]} 15.
Nf1 {[%emt 0:00:05]} Nb6 {[%emt 0:12:42]} 16. Qb3 {[%emt 0:13:16] [#]} (16. Qd1
$5 {[%cal Ra2a3]}) 16... Qa4 $146 {[%emt 0:18:47]} ({Predecessor:} 16... Ba5
17. Ne3 Rfc8 18. Nxf5 exf5 19. e6 fxe6 20. Ne5 Nc4 21. Ng6 Kf7 22. Nf4 g6 {
½-½ (46) Caspi,I (2484)-Risting,E (2317) Pardubice 2018}) 17. Rc7 {[%emt 0:
00:00]} Rab8 {[%emt 0:00:28]} 18. Ne3 {[%emt 0:02:43]} Qxb3 {[%emt 0:08:53]}
19. axb3 {[%emt 0:00:07] aiming for Nxf5.} Nxe3 {[%emt 0:00:17]} 20. fxe3 {
[%emt 0:22:36]} Rfc8 {[%emt 0:00:30]} 21. Rxc8+ {[%emt 0:01:45]} Nxc8 {[%emt 0:
00:00][%cal Yb6c8,Yc8a7,Ya7c6]} 22. Kf2 {[%emt 0:01:08]} a6 {[%emt 0:00:00]}
23. Ne1 {[%emt 0:06:58]} Bxe1+ {[%emt 0:01:41]} 24. Kxe1 $15 {[%emt 0:00:00]
Endgame KRB-KRN} Na7 {[%emt 0:00:12]} 25. Be7 {[%emt 0:00:35]} Rc8 {[%emt 0:00:
11] Strongly threatening ...Rc2.} 26. Kd2 {[%emt 0:01:13] Against Rc2+} Kh7 {
[%emt 0:07:07]} 27. Kd3 {[%emt 0:10:52]} Kg6 {[%emt 0:00:00]} 28. b4 {[%emt 0:
01:38]} Nc6 {[%emt 0:03:48]} 29. Bd6 {[%emt 0:00:27]} f6 {[%emt 0:01:37]} 30.
e4 {[%emt 0:00:48]} fxe5 {[%emt 0:00:00]} (30... dxe4+ {feels hotter.} 31. Kxe4
Na7 32. exf6 Nb5) 31. dxe5 {[%emt 0:01:40]} dxe4+ $1 {[%emt 0:00:00]} 32. Kxe4
$2 {[%emt 0:00:06] [#]} (32. Ke3 $1 $15) 32... Nxb4 $1 $19 {[%emt 0:00:00]
[%cal Yc8c2]} 33. Kf3 {[%emt 0:02:56]} (33. b3 Nd5) 33... Nd5 {[%emt 0:00:00]}
34. Ra3 {[%emt 0:03:30]} Rc2 {[%emt 0:00:00]} 35. Rb3 {[%emt 0:00:43]} b6 {
[%emt 0:00:00]} 36. Kg3 {[%emt 0:01:17]} a5 {[%emt 0:00:00]} 37. Kh2 {[%emt 0:
00:58]} Rc4 {[%emt 0:00:00]} 38. Kh3 {[%emt 0:01:11]} Kf5 {[%emt 0:00:00]} 39.
g3 $2 {[%emt 0:01:54]} (39. Rf3+ Ke4 40. Rf2) 39... Ke4 {[%emt 0:00:00]} 40. g4
{[%emt 0:00:12]} a4 {[%emt 0:00:00]} 41. Ra3 {[%emt 0:30:22]} b5 {[%emt 0:30:
14]} 42. gxh5 {[%emt 0:00:09]} Rc2 {[%emt 0:00:00]} 43. Rg3 {[%emt 0:01:28]}
Rxb2 {[%emt 0:00:42] And now ...Rb3 would win.} 44. Bf8 {[%emt 0:00:05]} b4 {
[%emt 0:00:21]} (44... Rb3 $142 45. h6 gxh6) 45. Bxg7 {[%emt 0:00:14]} a3 {
[%emt 0:00:28]} 46. h6 {[%emt 0:00:37]} a2 {[%emt 0:00:00]} 47. h7 {[%emt 0:00:
26]} Nf4+ $2 {[%emt 0:00:49]} (47... a1=Q {mates} 48. Kg4 Qf1 49. Kh5 Qf5+ 50.
Kh6 Rh2 51. Bf6 Nxf6 52. h8=Q Rxh4+ 53. Kg7 Rxh8 54. Rg4+ Nxg4 55. Kxh8 Nxe5
56. Kg7 Qg6+ 57. Kh8 Nf7#) 48. Kg4 $17 {[%emt 0:00:00]} Ng6 {[%emt 0:00:35]} (
48... Rg2 $1 $17 {[%cal Rg2g3]} 49. Rxg2 Nxg2) 49. Kg5 $2 {[%emt 0:01:08] [#]}
(49. Kh5 $11 Nf4+ 50. Kg5) 49... Nh8 $2 {[%emt 0:00:00]} 50. Bxh8 $11 {[%emt 0:
00:00]} a1=Q {[%emt 0:01:15]} (50... Rc2 $1 $11 51. Rg4+ Ke3) 51. Bf6 $16 {
[%emt 0:00:00] White has strong compensation. The board is on fire.} Qf1 {
[%emt 0:00:00] [#]} (51... Qc1+ $2 52. Kh5 Qd1+ 53. Kh6 Qc1+ 54. Kg7 $18) 52.
Rg4+ {[%emt 0:00:00]} Kd5 $2 {[%emt 0:00:00] [#]} (52... Kd3 {is a better
chance.}) 53. Kh6 $1 $18 {[%emt 0:00:00]} Qf5 {[%emt 0:00:00]} 54. Rg8 {
[%emt 0:00:00] Weighted Error Value: White=0.78/Black=0.62} 1-0

[Event "44th Chess Olympiad Open 2022"]
[Site "Chennai"]
[Date "2022.07.30"]
[Round "2.24"]
[White "Gemy, Jose Daniel"]
[Black "Jobava, Baadur"]
[Result "0-1"]
[WhiteElo "2373"]
[BlackElo "2585"]
[Annotator "TA"]
[PlyCount "80"]
[EventDate "2022.??.??"]
[TimeControl "60"]

{[%evp 9,80,100,89,55,57,33,85,87,112,-1,30,39,96,72,119,-69,-61,-61,-56,-56,
-53,-84,-69,-89,-60,-62,-66,-64,-62,-61,-59,-60,-47,-48,-10,-10,-10,-10,-10,-3,
-11,-15,0,-6,-2,-87,-97,-206,-205,-215,-214,-210,-227,-205,-208,-206,-206,-203,
-211,-305,-303,-324,-323,-321,-328,-317,-298,-29994,-29995,-29996,-29997,
-29997,-29998]} 1. e4 {[%emt 0:00:03]} e5 {[%emt 0:00:27]} 2. Nf3 {[%emt 0:00:
00]} Nf6 {[%emt 0:00:06]} 3. Nxe5 {[%emt 0:00:40]} d5 {[%emt 0:00:17]} 4. exd5
{[%emt 0:05:47]} Qxd5 {[%emt 0:00:13]} 5. d4 {[%emt 0:01:22]} Nc6 {[%emt 0:00:
00]} 6. Nxc6 {[%emt 0:14:39] C42: Petroff Defence: 3 Nxe5 and unusual White
3rd moves.} Qxc6 {[%emt 0:00:06]} 7. Qe2+ {[%emt 0:00:10] [#]} Kd8 $146 {
[%emt 0:06:15]} (7... Be7 $14) ({Predecessor:} 7... Be7 8. Qb5 Bd7 9. Qxc6 Bxc6
10. f3 O-O-O 11. c3 h5 12. h4 Nd5 13. Kf2 Bd7 {1-0 (61) Vachier Lagrave,M 
(2796)-Jobava,B (2707) Leuven 2017}) 8. Qc4 $16 {[%emt 0:12:28] White is
better.} Qe4+ {[%emt 0:01:36]} 9. Qe2 {[%emt 0:00:07]} (9. Be3 $1 $16) 9... Qg6
{[%emt 0:02:10]} 10. Be3 {[%emt 0:02:15]} Bg4 {[%emt 0:04:28]} (10... Bf5 $14)
11. Qd2 {[%emt 0:14:32]} (11. f3 $6 Bb4+ 12. Nd2 Qxc2 $1 $11) 11... Ne4 {
[%emt 0:04:37]} ({Black should play} 11... Bf5) 12. Bd3 $2 {[%emt 0:11:08]} (
12. Qd3 $16) 12... Nxd2 $15 {[%emt 0:00:11] Black is more active.} 13. Bxg6 {
[%emt 0:07:03]} Nf3+ $1 {[%emt 0:09:22]} 14. gxf3 {[%emt 0:00:00]} Bxf3 {
[%emt 0:00:05]} 15. Rg1 {[%emt 0:05:07]} hxg6 {[%emt 0:00:22]} 16. Nd2 {
[%emt 0:00:03] Inhibits Be4.} Bc6 {[%emt 0:00:36]} 17. Bf4 {[%emt 0:00:02]} Kd7
{[%emt 0:04:00]} 18. O-O-O {[%emt 0:00:39][%cal Yd4d5]} Rh4 {[%emt 0:01:26]}
19. Be5 {[%emt 0:12:26][%cal Yd4d5]} Re8 {[%emt 0:05:01]} ({Much weaker is} 
19... f6 20. d5 Bb5 21. Bg3 $11) 20. c3 {[%emt 0:00:48]} Bd6 {[%emt 0:02:34]}
21. Bg3 {[%emt 0:09:38]} Bxg3 {[%emt 0:09:36]} 22. hxg3 {[%emt 0:00:00]} Rh2 {
[%emt 0:00:05]} 23. d5 {[%emt 0:00:00]} Bb5 {[%emt 0:00:09] And now ...Be2
would win.} 24. c4 {[%emt 0:00:00]} Ba6 {[%emt 0:00:04]} 25. f3 {[%emt 0:00:00]
} Ree2 {[%emt 0:00:36][%cal Ya6c4] aiming for ...Bxc4!} 26. b3 {[%emt 0:00:00]}
b5 $36 {White must now prevent ...bxc4. Black fights for an advantage.} 27.
cxb5 {[%emt 0:01:59]} (27. Rge1 $11 {keeps the balance.}) 27... Bxb5 $17 {
[%emt 0:00:31]} 28. Kc2 {[%emt 0:01:58]} (28. a4 $17 {was called for.} Bd3 29.
Rge1) 28... Re3 $19 {[%emt 0:00:25]} 29. Rh1 {[%emt 0:00:00]} Rf2 {[%emt 0:01:
39]} 30. Kc1 {[%emt 0:00:00]} Rc3+ {[%emt 0:00:00]} 31. Kb2 {[%emt 0:00:00]}
Rcxf3 {[%emt 0:00:00]} 32. Ka3 {[%emt 0:00:00]} Re3 {[%emt 0:00:00]} ({But not
} 32... Rxg3 33. Ne4 Rgg2 34. Nxf2 Rxf2 35. Rh7 $14) 33. Kb4 {[%emt 0:00:00]}
Bd3 {[%emt 0:00:45]} 34. Rh7 {[%emt 0:03:27]} (34. Rh3 $142) 34... Rxg3 {
[%emt 0:08:10]} 35. Nc4 {[%emt 0:01:00]} Bxc4 {[%emt 0:00:11]} 36. bxc4 {
[%emt 0:00:06] [#]} Kd6 $1 {[%emt 0:03:25]} ({Wrong is} 36... Rxa2 $2 37. Rxg7
Rf3 38. Rg8 $19) 37. c5+ {[%emt 0:00:41] [#]} Kd7 $1 {[%emt 0:00:03] ( -> ...
Rf4+)} 38. d6 $2 {[%emt 0:00:43]} (38. c6+ $19 Kd6 39. Rh8 Rf4+ 40. Kb5) 38...
Rf4+ {[%emt 0:00:15] Black mates.} 39. Kb5 {[%emt 0:00:30]} a6+ 40. Kxa6 {
[%emt 0:00:16]} Ra3+ {[%emt 0:00:12] Weighted Error Value: White=0.48/Black=0.
09 (flawless)} 0-1

[Event "44th Chess Olympiad Open 2022"]
[Site "Chennai"]
[Date "2022.07.30"]
[Round "2.24"]
[White "Pinto, Daniel"]
[Black "Pantsulaia, Levan"]
[Result "0-1"]
[WhiteElo "2249"]
[BlackElo "2581"]
[Annotator "ChessBase"]
[PlyCount "90"]
[EventDate "2022.??.??"]
[TimeControl "60"]

1. e4 {[%emt 0:00:04]} c5 {[%emt 0:00:20]} 2. Nf3 {[%emt 0:00:39]} d6 {[%emt 0:
00:00]} 3. c3 {[%emt 0:00:44]} Nf6 {[%emt 0:00:15]} 4. Be2 {[%emt 0:00:22]} g6
{[%emt 0:05:37]} 5. O-O {[%emt 0:00:41]} Bg7 {[%emt 0:00:05]} 6. Bb5+ {[%emt 0:
00:00]} Bd7 {[%emt 0:04:02]} 7. Bxd7+ {[%emt 0:01:55]} Qxd7 {[%emt 0:00:08]} 8.
Re1 {[%emt 0:01:18]} Nc6 {[%emt 0:01:49]} 9. d4 {[%emt 0:06:03]} cxd4 {[%emt 0:
00:00]} 10. cxd4 {[%emt 0:03:11]} d5 {[%emt 0:00:05]} 11. e5 {[%emt 0:00:49]}
Ne4 {[%emt 0:00:08]} 12. Nbd2 {[%emt 0:02:20]} Nxd2 {[%emt 0:00:32]} 13. Bxd2 {
[%emt 0:00:20]} O-O {[%emt 0:00:07]} 14. b4 {[%emt 0:04:21]} Rfc8 {[%emt 0:00:
00]} 15. Qb3 {[%emt 0:22:12]} Nd8 {[%emt 0:00:25]} 16. Rec1 {[%emt 0:07:31]}
Ne6 {[%emt 0:03:09]} 17. b5 {[%emt 0:01:39]} a6 {[%emt 0:04:22]} 18. a4 {
[%emt 0:19:51]} axb5 {[%emt 0:06:46]} 19. axb5 {[%emt 0:05:21]} Rxc1+ {[%emt 0:
00:00]} 20. Rxc1 {[%emt 0:00:07]} f6 {[%emt 0:00:05]} 21. b6 {[%emt 0:09:17]}
Kf7 {[%emt 0:05:48]} 22. g3 {[%emt 0:01:02]} Ra4 {[%emt 0:01:25]} 23. Be3 {
[%emt 0:00:20]} Ra5 {[%emt 0:00:53]} 24. Bd2 {[%emt 0:07:15]} Qb5 {[%emt 0:00:
00]} 25. Qc2 {[%emt 0:02:28]} Ra8 {[%emt 0:04:30]} 26. Rb1 {[%emt 0:00:51]} Qa4
{[%emt 0:03:12]} 27. Qc3 {[%emt 0:01:34]} Qa2 {[%emt 0:00:57]} 28. Rb3 {
[%emt 0:00:42]} Qa1+ {[%emt 0:04:12]} 29. Kg2 {[%emt 0:00:31]} Qd1 {[%emt 0:00:
00]} 30. Ra3 {[%emt 0:00:17]} Rxa3 {[%emt 0:06:40]} 31. Qxa3 {[%emt 0:00:01]}
Qb1 {[%emt 0:00:06]} 32. Qa7 {[%emt 0:00:54]} Nd8 {[%emt 0:05:01]} 33. Qa5 {
[%emt 0:00:07]} Qe4 {[%emt 0:02:09]} 34. Qc3 {[%emt 0:01:12]} Nc6 {[%emt 0:00:
00]} 35. exf6 {[%emt 0:00:25]} Bxf6 {[%emt 0:00:47]} 36. Qe3 {[%emt 0:00:37]}
Nxd4 {[%emt 0:00:34]} 37. Qxe4 {[%emt 0:00:26]} dxe4 {[%emt 0:00:05]} 38. Ng5+
{[%emt 0:00:34]} Bxg5 {[%emt 0:00:09]} 39. Bxg5 {[%emt 0:00:05]} Ke6 {[%emt 0:
00:00]} 40. h3 {[%emt 0:00:50]} Nc2 {[%emt 0:02:34]} 41. Kf1 {[%emt 0:30:21]}
Nb4 {[%emt 0:31:35]} 42. Ke2 {[%emt 0:00:38]} Nd5 {[%emt 0:00:12]} 43. g4 {
[%emt 0:00:08]} Nxb6 {[%emt 0:00:34]} 44. Ke3 {[%emt 0:00:07]} Ke5 {[%emt 0:00:
00]} 45. Bf4+ {[%emt 0:00:29]} Kd5 {[%emt 0:00:05]} 0-1

[Event "44th Chess Olympiad Open 2022"]
[Site "Chennai"]
[Date "2022.07.30"]
[Round "2.25"]
[White "Mastrovasilis, Dimitrios"]
[Black "Saraci, Nderim"]
[Result "1/2-1/2"]
[WhiteElo "2599"]
[BlackElo "2495"]
[Annotator "TA"]
[PlyCount "93"]
[EventDate "2022.??.??"]
[TimeControl "60"]

{[%evp 22,93,-10,-9,8,16,4,14,17,10,0,-26,-28,-50,-41,-41,-41,-41,-54,-87,-41,
-42,-37,-73,-97,-182,-86,-99,-92,-87,-20,-22,-14,-17,-27,-27,6,7,19,6,37,55,37,
17,17,0,3,0,0,0,0,0,0,0,0,0,0,0,0,0,0,0,0,0,0,0,0,0,0,0,0,0,0,0]} 1. e4 {
[%emt 0:00:09] ChessBase II} e5 {[%emt 0:00:08]} 2. Nf3 {[%emt 0:00:09]} Nc6 {
[%emt 0:00:10]} 3. Bb5 {[%emt 0:00:21]} a6 {[%emt 0:00:30]} 4. Ba4 {[%emt 0:00:
00]} Nf6 {[%emt 0:00:14]} 5. O-O {[%emt 0:00:20]} Be7 {[%emt 0:01:46]} 6. Re1 {
[%emt 0:00:31]} b5 {[%emt 0:00:20]} 7. Bb3 {[%emt 0:00:13]} O-O {[%emt 0:00:43]
} 8. d4 {[%emt 0:04:48]} Nxd4 {[%emt 0:05:04]} 9. Nxd4 {[%emt 0:00:00]} exd4 {
[%emt 0:04:59]} 10. e5 {[%emt 0:00:00]} Ne8 {[%emt 0:00:08]} 11. Qxd4 {[%emt 0:
00:00]} c5 {[%emt 0:03:59]} 12. Qe4 {[%emt 0:00:00]} Nc7 {[%emt 0:41:12] has
lost popularity (12...Rb8). C88: Closed Ruy Lopez: Anti-Marshall Systems.} 13.
c4 {[%emt 0:52:29] Inhibits d5.} bxc4 {[%emt 0:05:19]} 14. Bc2 {[%emt 0:00:00]
[%csl Gc2][%cal Re4h7] [#]} g6 {[%emt 0:00:23]} 15. Bh6 {[%emt 0:03:32]} Re8 {
[%emt 0:00:34] And now ...d5 would win.} 16. Nd2 {[%emt 0:03:04] [#]} Bf8 $146
{[%emt 0:31:19]} ({Predecessor:} 16... Rb8 17. Nxc4 Bb7 18. Qg4 Nb5 19. Rad1
Nd4 20. Ba4 Bd5 21. b3 Be6 22. Qe4 Rb4 {½-½ (79) Apicella,M (2502)-Gozzoli,Y
(2622) Brest 2019 CBM 190 Extra [ChessBase II]}) 17. Bxf8 {[%emt 0:00:19]} d5 {
[%emt 0:00:52]} 18. Qe3 {[%emt 0:22:11]} Rxf8 {[%emt 0:00:00]} 19. Qxc5 {
[%emt 0:02:27]} Rb8 {[%emt 0:02:03]} 20. Qa3 {[%emt 0:06:03]} Nb5 {[%emt 0:00:
00]} ({Black should play} 20... Ne6 $17 21. Qc3 Qb6) 21. Qe3 $15 {[%emt 0:00:
00]} Qb6 {[%emt 0:00:00]} 22. Nf3 {[%emt 0:03:39] Against Nd4} Bg4 {[%emt 0:00:
00]} 23. a4 {[%emt 0:01:02]} (23. b3 $17 {was called for.}) 23... Qxe3 {
[%emt 0:00:00]} (23... Nc7 $19 {Hoping for ...Ne6.} 24. Reb1 Bxf3 25. Qxf3 Rbe8
) 24. Rxe3 $17 {[%emt 0:02:06][%cal Ye1e3,Ye3f3,Yf3f4]} Nc7 {[#] Threatens to
win with ...Ne6.} 25. b3 {[%emt 0:00:32]} Bxf3 {[%emt 0:00:00]} (25... Rb4 $17)
26. Rxf3 $11 {[%emt 0:02:47]} Ne6 {[%emt 0:00:00] aiming for ... Nd4.} 27. Rd1
{[%emt 0:02:59] Against Nd4} d4 {[%emt 0:01:00]} 28. bxc4 {[%emt 0:00:00]} Rb2
{[%emt 0:00:00]} 29. Be4 {[%emt 0:04:32]} Ng5 {[%emt 0:00:00]} 30. Rf4 {
[%emt 0:00:00]} Nxe4 {[%emt 0:00:06]} (30... Ne6 $5 {[%cal Re6f4]} 31. Rf6 Re2
$14) 31. Rxe4 {[%emt 0:00:00] Endgame KRR-KRR} Rd8 {[%emt 0:02:33]} 32. Kf1 {
[%emt 0:00:13]} d3 {[%emt 0:01:46] The position is equal.} 33. Re3 {[%emt 0:01:
15]} Rc2 {[%emt 0:00:00]} 34. Rexd3 {[%emt 0:00:00]} (34. a5 {keeps more
tension.} Rxc4 35. e6 Rc5 36. e7) 34... Rxd3 {[%emt 0:00:00]} 35. Rxd3 {
[%emt 0:00:00] Black must now prevent Rd6.} Rxc4 {[%emt 0:00:00] KR-KR} 36.
Rd8+ {[%emt 0:00:00]} Kg7 {[%emt 0:00:00]} 37. Rd7 {[%emt 0:00:00]} Kg8 {
[%emt 0:01:36]} 38. Rd8+ {[%emt 0:00:00]} Kg7 {[%emt 0:00:00]} 39. Rd7 {
[%emt 0:00:00]} Kg8 {[%emt 0:00:00]} 40. a5 {[%emt 0:00:00] Rd6 is the strong
threat.} Rc5 {[%emt 0:00:00][%csl Ya5,Ye5]} 41. f4 {[%emt 0:22:12]} Rxa5 {
[%emt 0:02:51]} 42. Kf2 {[%emt 0:00:00]} Ra2+ {[%emt 0:00:50]} 43. Kf3 {
[%emt 0:01:28]} h5 {[%emt 0:03:05]} 44. Ra7 {[%emt 0:04:37]} Ra3+ {[%emt 0:00:
00]} 45. Ke4 {[%emt 0:01:13]} Ra4+ {[%emt 0:00:00]} 46. Kf3 {[%emt 0:00:00]}
Ra3+ {[%emt 0:00:00]} 47. Ke4 {[%emt 0:00:00] Weighted Error Value: White=0.08
(flawless) /Black=0.11 (very precise)} 1/2-1/2